[Event "Polish University-ch Open 2024"]
[Site "Lublin"]
[Date "2024.02.23"]
[Round "1.7"]
[White "Mis, Mieszko"]
[Black "Daniszewski, Kacper"]
[Result "1-0"]
[ECO "A07"]
[WhiteElo "2325"]
[BlackElo "1413"]
[Annotator "TA"]
[PlyCount "61"]
[EventDate "2024.02.22"]
[EventType "swiss"]
[EventCountry "POL"]
[SourceTitle "playchess.com"]
[Source "ChessBase"]
[SourceQuality "1"]
[TimeControl "600+3"]

{[%evp 9,61,0,11,0,18,12,15,18,95,35,91,47,77,76,163,155,176,84,101,91,179,187,186,144,189,140,136,141,220,200,189,189,265,268,264,264,275,300,302,309,310,284,284,257,229,195,713,204,831,792,1127,1097,1105,1114]} 1. Nf3 {[%emt 0:00:04]} e6 {[%emt 0:00:01]} 2. g3 {[%emt 0:00:03]} Nf6 {[%emt 0:00:02]} 3. Bg2 {[%emt 0:00:03]} d5 {[%emt 0:00:01]} 4. O-O {[%emt 0:00:02]} Bd6 {[%emt 0:00:07]} 5. d3 {[%emt 0:00:05]} O-O {[%emt 0:00:03]} 6. Nbd2 {[%emt 0:00:01]} Nbd7 {[%emt 0:00:05]} 7. e4 {[%emt 0:00:02]} dxe4 {[%emt 0:00:10]} 8. dxe4 {[%emt 0:00:02] The position is equal.} Bc5 {[%emt 0:00:13] [#]} (8... Re8 $11) 9. c3 {[%emt 0:00:06]} (9. e5 $1 $16 {[%cal Re5f6]} Nd5 10. Ne4) 9... a6 {[%emt 0:00:06]} (9... e5 $14) 10. Qc2 {[%emt 0:00:03]} h6 {[%emt 0:00:21]} 11. e5 {[%emt 0:00:27]} Ng4 {[%emt 0:00:19]} (11... Nd5 $16) 12. Qe4 {[%emt 0:00:09]} f5 {[%emt 0:00:36] [#]} 13. exf6 {[%emt 0:00:09]} (13. Qe2 $1 $18 {has better winning chances.}) 13... Ndxf6 $16 {[%emt 0:00:17]} 14. Qe2 {[%emt 0:09:29]} Nd5 {[%emt 0:02:56]} (14... e5 $16 {was worth a try.}) 15. Ne4 $18 {[%emt 0:00:00]} Ba7 {[%emt 0:00:06]} 16. Bd2 {[%emt 0:00:00]} Ngf6 {[%emt 0:00:09]} 17. Rad1 {[%emt 0:00:00]} ({Better is} 17. Ne5 $18) 17... Nxe4 $16 {[%emt 0:00:18]} 18. Qxe4 {[%emt 0:00:00][%cal Od2h6] Hoping for Bxh6!} Qe7 {[%emt 0:00:11]} (18... Nf6 $16 19. Qe1 Qe7) 19. Ne5 {[%emt 0:00:00] Black must now prevent Ng6.} Nf6 {[%emt 0:00:27]} 20. Qe2 {[%emt 0:00:00] And now Ng6 would win.} Qc5 {[%emt 0:00:34]} (20... Qe8 {was necessary.} 21. b3 a5) 21. b4 $18 {[%emt 0:00:00]} Qb5 {[%emt 0:00:09]} 22. c4 {[%emt 0:00:00]} Qe8 {[%emt 0:00:29]} 23. Be3 {[%emt 0:00:00]} Qh5 {[%emt 0:00:27]} 24. Qxh5 {[%emt 0:00:00]} Nxh5 {[%emt 0:00:01]} 25. Bxa7 {[%emt 0:00:00]} Rxa7 {[%emt 0:00:01]} 26. Ng6 {[%emt 0:00:00] Against Nf6} Re8 {[%emt 0:00:14]} 27. Rfe1 {[%emt 0:00:00]} b5 $2 {[%emt 0:00:11]} (27... Kh7) 28. c5 $2 {[%emt 0:00:00]} (28. Bc6 Kf7 29. Ne5+ (29. Bxe8+ Kxe8 30. cxb5 axb5 $18) (29. cxb5 axb5 30. Ne5+ Kf8 $18) 29... Kf8 30. cxb5 (30. Bxe8 Kxe8 31. Nc6 Ra8 $18) 30... axb5 31. Bxe8 (31. Bxb5 Rxa2 32. Bxe8 Kxe8 $18) 31... Kxe8 32. Nc6) 28... a5 $2 {[%emt 0:00:09]} (28... Bb7 29. c6 Bc8) 29. Bc6 {[%emt 0:00:00][%csl LRb5,LRe8] White is clearly winning.} Rf8 {[%emt 0:00:15]} 30. Nxf8 {[%emt 0:00:00] Strongly threatening Rd8.} Kxf8 {[%emt 0:00:01]} 31. Rd8+ {[%emt 0:00:00] Weighted Error Value: White=0.42/Black=0.36.  Mistake:       	White=4     	Black=8      Inaccurate:     	White=1     	Black=3      OK:         	White=8     	Black=4      Best:        	White=1     	---} 1-0

[Event "Polish University-ch Open 2024"]
[Site "Lublin"]
[Date "2024.02.23"]
[Round "1.8"]
[White "Zielinski, Sebastian"]
[Black "Kowalski, Igor"]
[Result "0-1"]
[ECO "B15"]
[WhiteElo "1607"]
[BlackElo "2372"]
[Annotator "TA"]
[PlyCount "70"]
[EventDate "2024.02.22"]
[EventType "swiss"]
[EventCountry "POL"]
[SourceTitle "playchess.com"]
[Source "ChessBase"]
[SourceQuality "1"]
[TimeControl "600+3"]

{[%evp 10,70,45,45,65,30,28,17,17,-5,0,-21,27,-6,0,-70,-38,-117,-116,-144,-92,-122,-71,-154,-136,-143,-143,-135,-132,-135,-119,-204,-207,-210,-204,-223,-215,-239,-143,-243,-125,-127,-120,-218,-170,-166,-160,-183,-129,-167,-134,-126,-114,-114,-114,-393,-395,-816,-816,-863,-862,-2333,-2289]} 1. e4 {[%emt 0:00:02]} g6 {[%emt 0:00:01]} 2. Nc3 {[%emt 0:00:03]} Bg7 {[%emt 0:00:01]} 3. f4 {[%emt 0:00:01]} c6 {[%emt 0:00:04]} 4. Nf3 {[%emt 0:00:04]} d5 {[%emt 0:00:01]} 5. e5 {[%emt 0:00:08]} Nh6 {[%emt 0:00:07]} 6. d4 {[%emt 0:00:12]} Bg4 {[%emt 0:00:04]} 7. Be2 {[%emt 0:00:04]} Nf5 {[%emt 0:00:03]} 8. O-O {[%emt 0:00:04]} e6 {[%emt 0:00:08] The position is equal.} 9. h3 {[%emt 0:00:19]} Bxf3 {[%emt 0:00:02]} 10. Bxf3 {[%emt 0:00:02]} h5 {[%emt 0:00:09]} (10... Qb6 {should be considered.}) 11. Na4 {[%emt 0:00:45]} Nd7 {[%emt 0:00:19]} 12. b3 {[%emt 0:01:06]} (12. Nc3 $11) 12... b5 {[%emt 0:00:11]} (12... f6 $5) 13. Nc5 {[%emt 0:00:01]} ({Better is} 13. Nc3 $15) 13... Nxc5 $17 {[%emt 0:00:17]} 14. dxc5 {[%emt 0:00:01]} Qa5 {[%emt 0:00:05]} (14... Qe7 $142 15. b4 a5) 15. Qd3 {[%emt 0:01:12]} b4 {[%emt 0:00:06]} (15... Bf8 $142 16. Bd2 (16. Be3 $2 Nxe3 17. Qxe3 b4 $17) 16... Bxc5+ 17. Kh2 Qb6) 16. Be3 {[%emt 0:00:13]} (16. a3 $142) 16... Nxe3 {[%emt 0:00:05]} 17. Qxe3 {[%emt 0:00:01]} Bf8 {[%emt 0:00:01]} 18. Qd3 {[%emt 0:00:25]} Qxc5+ {[%emt 0:00:29]} 19. Kh1 {[%emt 0:00:02]} a5 {[%emt 0:00:44]} 20. g4 {[%emt 0:01:01]} (20. Rab1 $17) 20... hxg4 $19 {[%emt 0:00:14]} 21. Bxg4 {[%emt 0:00:01]} a4 {[%emt 0:00:47]} 22. Kg2 {[%emt 0:01:45]} Be7 {[%emt 0:00:47]} 23. Bf3 {[%emt 0:00:33]} Qc3 {[%emt 0:00:29]} (23... Rh4 $19 24. Bg4 Qb6) 24. Rfb1 {[%emt 0:02:18]} (24. Qxc3 $17 {was called for.} bxc3 25. Rab1) 24... O-O {[%emt 0:01:20]} (24... Qxd3 $19 25. cxd3 Bc5) 25. Qxc3 $17 {[%emt 0:00:01]} bxc3 {[%emt 0:00:01]} 26. b4 {[%emt 0:00:01]} (26. Rh1 $17) 26... Rab8 {[%emt 0:00:17]} 27. a3 {[%emt 0:00:01]} c5 $36 {[%emt 0:00:02][%mdl 2048] Black has strong initiative.} 28. Be2 {[%emt 0:00:26]} Rfc8 {[%emt 0:00:56]} (28... cxb4 $19 {Threatens to win with ...b3.} 29. axb4 Ra8 (29... Rxb4 30. Rxb4 Bxb4 31. Rxa4 $17) (29... Bxb4 $2 30. Rxa4 Bc5 31. Rh1 $19)) 29. Kf3 {[%emt 0:00:05]} Rb6 {[%emt 0:00:10] Strongly threatening ...Rcb8.} 30. bxc5 {[%emt 0:00:16]} Rxb1 {[%emt 0:00:02]} (30... Bxc5 31. Rxb6 Bxb6 32. Bb5 $19) 31. Rxb1 {[%emt 0:00:01]} Bxc5 {[%emt 0:00:01] KRB-KRB} ({Much worse is} 31... Rxc5 $6 32. Rb8+ Bf8 33. Ra8 $11) 32. Rb7 $2 {[%emt 0:00:07][%mdl 8192] Now White is beyond hope.} (32. Kg4 $17 {keeps fighting.}) 32... Ra8 $1 $19 {[%emt 0:00:06]} (32... Bxa3 $2 33. Ra7 $19) 33. Rc7 $2 {[%emt 0:00:04]} (33. Bb5) 33... Bxa3 {[%emt 0:00:02] [#] ...Bb2 would now be deadly. Black is clearly winning.} 34. Rxc3 {[%emt 0:00:01]} Bb2 {[%emt 0:00:01]} 35. Rc6 {[%emt 0:00:15]} a3 {[%emt 0:00:02] Weighted Error Value: White=0.74/Black=0.25 (precise) .  Loses game:     	White=1     	---        Mistake:       	White=7     	Black=6      Inaccurate:     	White=3     	Black=1      OK:         	White=4     	Black=8      Best:        	White=2     	Black=3      Strong:       	---       	Black=1} 0-1

[Event "Polish University-ch Open 2024"]
[Site "Lublin"]
[Date "2024.02.23"]
[Round "1.9"]
[White "Szustakowski, Antoni"]
[Black "Marciniak, Piotr"]
[Result "1-0"]
[ECO "E08"]
[WhiteElo "2354"]
[BlackElo "1305"]
[Annotator "TA"]
[PlyCount "57"]
[EventDate "2024.02.22"]
[EventType "swiss"]
[EventCountry "POL"]
[SourceTitle "playchess.com"]
[Source "ChessBase"]
[SourceQuality "1"]
[TimeControl "600+3"]

{[%evp 18,57,30,11,60,71,79,75,77,77,121,98,129,56,174,185,196,171,177,189,166,134,308,67,83,75,58,78,70,70,314,5,342,320,518,508,535,532,669,670,608,125]} 1. Nf3 {[%emt 0:00:01]} d5 {[%emt 0:00:01]} 2. g3 {[%emt 0:00:02]} Nf6 {[%emt 0:00:02]} 3. Bg2 {[%emt 0:00:01]} e6 {[%emt 0:00:09]} 4. O-O {[%emt 0:00:04]} Be7 {[%emt 0:00:12]} 5. c4 {[%emt 0:00:05]} c6 {[%emt 0:00:02]} 6. b3 {[%emt 0:00:08]} O-O {[%emt 0:00:07]} 7. Bb2 {[%emt 0:00:02]} Nbd7 {[%emt 0:00:07]} 8. Nc3 {[%emt 0:00:27]} b6 {[%emt 0:00:33]} 9. d4 {[%emt 0:00:12]} Bb7 {[%emt 0:00:56]} 10. Qc2 {[%emt 0:00:57]} dxc4 {[%emt 0:00:42]} (10... Qc7 $11) 11. bxc4 $14 {[%emt 0:00:03]} c5 {[%emt 0:00:17] [#]} 12. d5 {[%emt 0:00:27]} exd5 {[%emt 0:00:27] White is better.} 13. cxd5 {[%emt 0:00:02]} Bd6 {[%emt 0:02:52][%cal Oa8c8]} 14. e4 {[%emt 0:00:24]} Re8 {[%emt 0:00:04]} 15. Rfe1 {[%emt 0:00:31]} (15. a4 $16) 15... Ne5 {[%emt 0:00:14]} (15... c4 $1 $14) 16. Nb5 $18 {[%emt 0:00:32] Black must now prevent Nxd6.} Nxf3+ {[%emt 0:01:03]} 17. Bxf3 {[%emt 0:00:02]} Be5 {[%emt 0:00:48]} 18. Bxe5 {[%emt 0:00:01]} Rxe5 {[%emt 0:00:01]} 19. Qb2 {[%emt 0:00:14]} Re8 {[%emt 0:00:34]} (19... Re7 $16) 20. Rad1 $2 {[%emt 0:01:22]} (20. e5 $1 $18 {[%cal Re5f6]}) 20... a6 $14 {[%emt 0:00:24]} 21. Na3 {[%emt 0:00:44] White is much more active.} b5 {[%emt 0:00:22] Dodges Nc4} 22. e5 {[%emt 0:01:02]} Nd7 {[%emt 0:00:01][%cal Oe8e5]} (22... Nxd5 $2 {is the wrong capture.} 23. Nc4 $18) (22... Bxd5 $2 {perishes.} 23. Nc2 (23. exf6 $2 Rxe1+ 24. Rxe1 Bxf3 $19) 23... Qb8 24. Bxd5 $18) 23. Bg2 $36 {[%emt 0:00:51][%mdl 2048] White has good play.} Qb6 $2 {[%emt 0:00:28] [#]} ({Better is} 23... Rb8 $14) 24. Rb1 $2 {[%emt 0:01:23]} (24. e6 $1 $18 Nf6 25. Nc4) 24... Qa5 $2 {[%emt 0:00:29][%mdl 8192] [#]} (24... Rad8 $11) 25. Nc4 $1 $18 {[%emt 0:00:11]} bxc4 {[%emt 0:00:06]} (25... Qc7 26. Nd6 Nf8 27. Nxe8 Rxe8) 26. Qxb7 {[%emt 0:00:01] White is clearly winning.} Rad8 {[%emt 0:00:14]} 27. e6 {[%emt 0:00:12] Hoping for e7.} fxe6 {[%emt 0:00:02]} 28. dxe6 {[%emt 0:00:01] And now e7 would win.} Nf6 {[%emt 0:00:02]} 29. Qf7+ {[%emt 0:00:08] Weighted Error Value: White=0.48/Black=0.97.  Loses game:     	---       	Black=3      Missed win:     	White=2     	---        Mistake:       	White=1     	Black=2      Inaccurate:     	---       	Black=1      OK:         	White=6     	Black=5      Best:        	White=1     	Black=3      Strong:       	White=1     	---        Brilliant:      	White=1     	---} 1-0

[Event "Polish University-ch Open 2024"]
[Site "Lublin"]
[Date "2024.02.23"]
[Round "1.10"]
[White "Wolpiuk, Bartlomiej"]
[Black "Molenda, Marcin"]
[Result "0-1"]
[ECO "B43"]
[WhiteElo "1319"]
[BlackElo "2377"]
[Annotator "TA"]
[PlyCount "86"]
[EventDate "2024.02.22"]
[EventType "swiss"]
[EventCountry "POL"]
[SourceTitle "playchess.com"]
[Source "ChessBase"]
[SourceQuality "1"]
[TimeControl "600+3"]

{[%evp 14,86,39,16,13,0,23,-1,18,7,43,48,55,0,0,-97,-88,-126,-105,-125,-113,-125,-97,-91,-95,-102,-107,-86,-95,-98,-87,-86,-44,-111,-104,-103,-97,-106,-88,-126,-120,-129,-95,-114,-106,-114,-99,-325,-310,-331,-316,-358,-318,-325,-324,-387,-384,-403,-395,-565,-541,-515,-522,-750,-599,-681,-672,-1104,-1063,-1035,-1008,-1758,-1381,-3020,-1770]} 1. e4 {[%emt 0:00:02]} c5 {[%emt 0:00:01]} 2. Nf3 {[%emt 0:00:01]} e6 {[%emt 0:00:06]} 3. d4 {[%emt 0:00:02]} cxd4 {[%emt 0:00:01]} 4. Nxd4 {[%emt 0:00:01]} a6 {[%emt 0:00:01]} 5. Nc3 {[%emt 0:00:03]} Qc7 {[%emt 0:00:03]} 6. Bd3 {[%emt 0:00:18]} Nf6 {[%emt 0:00:14]} 7. O-O {[%emt 0:00:04]} d6 {[%emt 0:00:14]} 8. Kh1 {[%emt 0:00:06]} Nbd7 {[%emt 0:00:02]} 9. Qe2 {[%emt 0:00:15]} Be7 {[%emt 0:00:14]} 10. Bg5 {[%emt 0:00:30]} O-O {[%emt 0:01:44] The position is equal.} 11. f4 {[%emt 0:00:23]} Re8 {[%emt 0:01:16]} 12. Rae1 {[%emt 0:00:42] e5 is the strong threat.} h6 $1 {[%emt 0:01:27]} 13. e5 {[%emt 0:01:54]} ({White should try} 13. Bh4 $14) 13... dxe5 $11 {[%emt 0:00:35]} 14. fxe5 {[%emt 0:00:03]} (14. Nxe6 $1 $11 fxe6 15. Bxf6 Bxf6 (15... Nxf6 $2 {too greedy.} 16. fxe5 Rf8 17. exf6 $18) 16. Qe4) 14... Qxe5 $17 {[%emt 0:01:25]} ({Of course not} 14... hxg5 $6 15. exf6 Nxf6 16. Nf3 $11) 15. Qxe5 {[%emt 0:01:28]} Nxe5 {[%emt 0:00:02]} 16. Rxe5 {[%emt 0:00:02]} hxg5 {[%emt 0:00:03]} 17. Rxg5 {[%emt 0:00:02]} Bd7 {[%emt 0:00:27]} 18. Rg3 {[%emt 0:02:18]} Rac8 {[%emt 0:00:09]} 19. Ne4 {[%emt 0:00:20]} Nxe4 {[%emt 0:00:19]} 20. Bxe4 {[%emt 0:00:02]} Rc7 {[%emt 0:00:18]} 21. c3 {[%emt 0:00:32]} f5 {[%emt 0:00:12]} 22. Bc2 {[%emt 0:00:10]} Bf6 {[%emt 0:01:26] [#] Hoping for ...Bxd4.} 23. Rd3 {[%emt 0:00:41]} (23. Bb3 $15) 23... g6 {[%emt 0:00:11]} 24. Bb3 {[%emt 0:00:01]} Kg7 {[%emt 0:00:45]} 25. Rfd1 {[%emt 0:00:05][%cal Od4f5]} Bc8 {[%emt 0:00:00]} 26. Kg1 {[%emt 0:00:35]} e5 {[%emt 0:00:00]} 27. Ne2 {[%emt 0:00:02]} e4 {[%emt 0:00:00]} 28. Rd6 {[%emt 0:00:05]} Be7 {[%emt 0:00:00]} 29. R6d5 {[%emt 0:00:08]} Be6 {[%emt 0:00:00]} 30. R5d4 $2 {[%emt 0:00:01] Loses the game.} (30. R5d2 $17) 30... Bc5 $19 {[%emt 0:00:00]} 31. Bxe6 {[%emt 0:00:15]} Rxe6 {[%emt 0:00:00]} 32. Kf1 {[%emt 0:00:01][%cal Oe2f4]} Bxd4 {[%emt 0:00:00]} 33. Nxd4 {[%emt 0:00:01][%mdl 4096] Endgame. KRR-KRN} Ree7 {[%emt 0:00:00]} 34. Ke2 {[%emt 0:00:02]} Kf6 {[%emt 0:00:00]} 35. g3 {[%emt 0:00:01]} Ke5 {[%emt 0:00:03]} 36. Ke3 {[%emt 0:00:03]} (36. Rf1 $142) 36... g5 {[%emt 0:00:04] Threatens to win with ...Rh7. Black is clearly winning.} 37. Rf1 {[%emt 0:00:03]} Rf7 {[%emt 0:00:01] ...f4+ would now be deadly.} 38. Ne2 {[%emt 0:00:13]} Rcd7 {[%emt 0:00:02][%cal Of5f4] [#] And now ...f4+! would win.} 39. Nd4 {[%emt 0:00:01]} f4+ {[%emt 0:00:02]} 40. gxf4+ {[%emt 0:00:01]} gxf4+ {[%emt 0:00:01]} 41. Ke2 {[%emt 0:00:01]} Rh7 {[%emt 0:00:05]} 42. Rf2 {[%emt 0:00:06]} Rh3 {[%emt 0:00:07] aiming for ...e3.} 43. a4 {[%emt 0:00:03]} Rdh7 {[%emt 0:00:05] Weighted Error Value: White=0.82/Black=0.30.  Loses game:     	White=1     	---        Mistake:       	White=4     	---        Inaccurate:     	White=4     	Black=2      OK:         	White=9     	Black=14     Best:        	White=1     	Black=2      Strong:       	---       	Black=1} 0-1

[Event "Polish University-ch Open 2024"]
[Site "Lublin"]
[Date "2024.02.23"]
[Round "1.11"]
[White "Nowak, Mikolaj"]
[Black "Drozdzal, Michal"]
[Result "1-0"]
[ECO "D30"]
[WhiteElo "2317"]
[BlackElo "1557"]
[Annotator "TA"]
[PlyCount "65"]
[EventDate "2024.02.22"]
[EventType "swiss"]
[EventCountry "POL"]
[SourceTitle "playchess.com"]
[Source "ChessBase"]
[SourceQuality "1"]
[TimeControl "600+3"]

{[%evp 9,64,-16,-14,-21,-9,0,15,6,24,14,31,21,29,0,18,-41,-40,-43,-41,-29,-18,-29,0,-14,30,-8,-14,-50,22,0,0,-120,-122,-135,-134,-120,-129,-110,-108,-274,-297,-263,-12,-16,139,113,255,232,883,268,455,78,155,172,466,452,29999]} 1. d4 {[%emt 0:00:03]} Nf6 {[%emt 0:00:02]} 2. Nf3 {[%emt 0:00:03]} e6 {[%emt 0:00:03]} 3. c4 {[%emt 0:00:02]} d5 {[%emt 0:00:02]} 4. Nbd2 {[%emt 0:00:05]} c5 {[%emt 0:00:14]} 5. cxd5 {[%emt 0:00:05]} exd5 {[%emt 0:00:14]} 6. g3 {[%emt 0:00:02]} Nc6 {[%emt 0:00:11]} 7. Bg2 {[%emt 0:00:03]} Bf5 {[%emt 0:00:24]} 8. O-O {[%emt 0:00:08] The position is equal.} Be7 {[%emt 0:00:02][%cal Bf8e7,Be7c5,Bc5b6][%mdl 32]} 9. dxc5 {[%emt 0:00:03]} Bxc5 {[%emt 0:00:08]} 10. Nb3 {[%emt 0:00:02]} Bb6 {[%emt 0:00:07]} 11. Nfd4 {[%emt 0:00:29]} Be4 {[%emt 0:00:12]} 12. f3 {[%emt 0:09:34]} (12. Bg5 $11) 12... Bg6 $15 {[%emt 0:00:42]} 13. Be3 {[%emt 0:00:00]} O-O {[%emt 0:00:05]} 14. Bf2 {[%emt 0:00:00]} Re8 {[%emt 0:00:03]} 15. Rc1 {[%emt 0:00:09]} Rc8 {[%emt 0:00:24]} 16. Qd2 {[%emt 0:00:00]} Qd6 {[%emt 0:00:14]} 17. Kh1 {[%emt 0:00:00]} Ne5 {[%emt 0:00:23][%cal Bc6e5,Be5c4,Bc4e3,Be3g2][%mdl 32]} 18. Nb5 {[%emt 0:00:00]} Qd7 {[%emt 0:00:22]} (18... Qe6 $15 19. Rxc8 (19. Nxa7 $2 Rxc1 20. Qxc1 Bxf2 $19) 19... Rxc8) 19. Bxb6 {[%emt 0:00:00]} (19. Nxa7 $2 Rxc1 20. Qxc1 Bxf2 21. Rxf2 b6 $19) (19. Rxc8 {simplifies} Rxc8 20. Bxb6 axb6 21. N3d4) 19... Nc4 {[%emt 0:00:50]} 20. Qd4 {[%emt 0:00:00]} (20. Nxa7 $2 Nxd2 21. Nxc8 Nxb3 (21... Nxf1 $2 22. Rc7 $19) 22. axb3 Rxc8 $19) (20. Qb4 $11 axb6 21. N3d4) 20... Qxb5 $17 {[%emt 0:01:15]} 21. Bxa7 {[%emt 0:00:00]} b6 {[%emt 0:00:31][%cal Oc8a8] [#] Hoping for ...Ra8!} (21... Rxe2 22. Qc3 Nd6 (22... Rxb2 23. Qxb2 Nxb2 24. Rxc8+ Ne8 25. Re1 $16) 23. Bc5 Rxg2 24. Kxg2 $15) 22. e4 {[%emt 0:00:00]} Ra8 {[%emt 0:00:19]} 23. exd5 {[%emt 0:00:00]} Ne3 {[%emt 0:00:51]} 24. Rfe1 $2 {[%emt 0:00:00]} (24. Qxb6 $17 {might work better.} Qe2 (24... Qxd5 25. Rfe1 $14) 25. Rg1 Nxg2 (25... Nexd5 26. Qf2 $16) (25... Nfxd5 26. Qd4 $15) (25... Qxb2 26. Qa5 $17) 26. Nd4) 24... Nxg2 $19 {[%emt 0:00:47] Excellent horsemanship.} 25. Rxe8+ {[%emt 0:00:00]} Nxe8 $2 {[%emt 0:01:41]} (25... Qxe8 $19 26. Bxb6 Ne1) 26. Bxb6 {[%emt 0:00:01][%cal Ba7b6,Bb6f2,Bf2c5][%mdl 32]} Qe2 $2 {[%emt 0:00:23] [#]} (26... Rxa2 $11 27. Nd2 Qe2 (27... Qxb2 28. Qxb2 Rxb2 29. Rc8 $11) (27... Rxb2 28. Rc8 $15)) 27. Qf2 $1 $16 {[%emt 0:00:08]} Qxf2 {[%emt 0:00:10]} (27... Qb5 $16) 28. Bxf2 $18 {[%emt 0:00:02]} Rxa2 $2 {[%emt 0:00:18]} (28... Nh4) 29. Kxg2 $2 {[%emt 0:00:02]} (29. Rc8 {[%cal Rc8e8]} h5 30. d6 (30. Kxg2 Kh7 $18)) 29... Rxb2 $2 {[%emt 0:00:01]} (29... f5 30. Bd4 Ra8) 30. Na5 $2 {[%emt 0:00:14]} (30. Rc8 $18 {[%cal Rc8e8] and the rest is easy.} Kf8 31. Nd4) 30... Rb5 {[%emt 0:00:12]} (30... Rc2 $142 31. Rd1 Nd6) 31. Rc8 $1 $16 {[%emt 0:00:07]} Kf8 {[%emt 0:00:13]} (31... f6) 32. Bc5+ $18 {[%emt 0:00:07]} Kg8 {[%emt 0:00:06]} (32... Rxc5 $18 33. Rxc5 Ke7) 33. Rxe8# {[%emt 0:00:08] Weighted Error Value: White=0.65/Black=0.84.  Loses game:     	White=1     	---        Missed win:     	---       	Black=1      Mistake:       	White=3     	Black=8      Inaccurate:     	White=3     	Black=2      OK:         	White=9     	Black=9      Best:        	White=2     	---        Strong:       	White=2     	---} 1-0